[Event "12th Arad Open 2019"]
[Site "Arad"]
[Date "2019.07.29"]
[Round "7.39"]
[White "Stancu, Ovidiu-Grigore"]
[Black "Markovic, Franjo-Josip"]
[Result "0-1"]
[ECO "D85"]
[WhiteElo "1948"]
[BlackElo "2160"]
[Annotator "NA"]
[PlyCount "84"]
[EventDate "2019.07.24"]
[EventType "swiss"]
[EventCountry "ROU"]
[SourceTitle "playchess.com"]
[Source "ChessBase"]
[SourceQuality "1"]
[TimeControl "40/5400+30:900+30"]

1. d4 {[%emt 0:00:00]} Nf6 {[%emt 0:00:18]} 2. c4 {[%emt 0:00:00]} g6 {[%emt 0:00:12]} 3. Nc3 {[%emt 0:00:00]} d5 {[%emt 0:00:05]} 4. cxd5 {[%emt 0:00:52]} Nxd5 {[%emt 0:00:08]} 5. e4 {[%emt 0:00:02]} Nxc3 {[%emt 0:00:06]} 6. bxc3 {[%emt 0:00:03]} Bg7 {[%emt 0:00:05]} 7. Qa4+ {[%emt 0:00:59]} Nd7 {[%emt 0:00:39]} 8. Nf3 {[%emt 0:00:48]} O-O {[%emt 0:00:07]} 9. Qa3 {[%emt 0:00:36]} c5 {[%emt 0:02:23]} 10. Be3 {[%emt 0:01:39]} cxd4 {[%emt 0:00:49]} 11. cxd4 {[%emt 0:00:09]} Nb6 {[%emt 0:00:57]} 12. Rc1 {[%emt 0:00:53]} Bg4 {[%emt 0:01:11]} 13. Be2 {[%emt 0:03:55]} Bxf3 {[%emt 0:09:00]} 14. gxf3 {[%emt 0:00:04]} Bxd4 {[%emt 0:04:39]} 15. Bxd4 {[%emt 0:06:28]} Qxd4 {[%emt 0:00:07]} 16. Qxe7 {[%emt 0:07:26]} Qb2 {[%emt 0:05:29]} 17. Rd1 {[%emt 0:01:01]} Na4 {[%emt 0:04:17]} 18. Rd7 {[%emt 0:05:53]} Rac8 {[%emt 0:09:03]} 19. Bd1 {[%emt 0:03:53]} Qxa2 {[%emt 0:18:28]} 20. O-O {[%emt 0:02:16]} Nc5 {[%emt 0:01:33]} 21. Rd5 {[%emt 0:03:13]} Rfe8 {[%emt 0:10:21]} 22. Qg5 {[%emt 0:06:55]} b6 {[%emt 0:00:20]} 23. h4 {[%emt 0:00:53]} Kg7 {[%emt 0:03:18]} 24. h5 {[%emt 0:01:43]} h6 {[%emt 0:00:11]} 25. Qg4 {[%emt 0:03:19]} Rc6 {[%emt 0:01:41]} 26. Kh1 {[%emt 0:03:07]} a5 {[%emt 0:02:01]} 27. Rg1 {[%emt 0:02:27]} Qxf2 {[%emt 0:04:47]} 28. Rg2 {[%emt 0:00:39]} Qe1+ {[%emt 0:01:56]} 29. Rg1 {[%emt 0:01:10]} Qe3 {[%emt 0:00:16]} 30. Bc2 {[%emt 0:05:37]} Rf6 {[%emt 0:02:31]} 31. Rf5 {[%emt 0:02:49]} Rxf5 {[%emt 0:05:04]} 32. exf5 {[%emt 0:00:14]} g5 {[%emt 0:02:06]} 33. f6+ Kf8 {[%emt 0:02:20]} 34. f4 {[%emt 0:05:46]} Ne4 {[%emt 0:01:22]} 35. Bxe4 {[%emt 0:11:44]} Qxe4+ {[%emt 0:00:17]} 36. Kh2 {[%emt 0:01:31]} Qxf4+ {[%emt 0:00:37]} 37. Qxf4 {[%emt 0:00:34]} gxf4 {[%emt 0:00:05]} 38. Rf1 {[%emt 0:00:08]} Re6 {[%emt 0:02:28]} 39. Rxf4 {[%emt 0:00:04]} b5 {[%emt 0:00:23]} 40. Kg3 {[%emt 0:00:00]} a4 {[%emt 0:00:00]} 41. Kg4 {[%emt 0:00:53]} a3 {[%emt 0:01:12]} 42. Kf5 {[%emt 0:01:43]} a2 {[%emt 0:00:35]} 0-1

[Event "12th Arad Open 2019"]
[Site "Arad"]
[Date "2019.07.29"]
[Round "7.40"]
[White "Pislariu, Stefanel-Vasilica"]
[Black "Mozes, Ervin"]
[Result "1/2-1/2"]
[ECO "A84"]
[WhiteElo "1934"]
[BlackElo "2121"]
[Annotator "NA"]
[PlyCount "42"]
[EventDate "2019.07.24"]
[EventType "swiss"]
[EventCountry "ROU"]
[SourceTitle "playchess.com"]
[Source "ChessBase"]
[SourceQuality "1"]
[TimeControl "40/5400+30:900+30"]

1. d4 {[%emt 0:00:00]} f5 {[%emt 0:00:00]} 2. c4 {[%emt 0:00:22]} d6 {[%emt 0:00:00]} 3. Nf3 {[%emt 0:00:39]} Nf6 {[%emt 0:00:40]} 4. Nc3 {[%emt 0:00:12]} g6 {[%emt 0:01:02]} 5. e3 {[%emt 0:00:30]} Bg7 {[%emt 0:02:11]} 6. b4 {[%emt 0:00:30]} c6 {[%emt 0:02:28]} 7. Bb2 {[%emt 0:05:16]} Qc7 {[%emt 0:07:52]} 8. d5 {[%emt 0:08:22]} Nbd7 {[%emt 0:08:29]} 9. Qb3 {[%emt 0:03:27]} Nf8 {[%emt 0:19:39]} 10. Be2 {[%emt 0:04:47]} e5 {[%emt 0:02:53]} 11. dxe6 {[%emt 0:03:17]} Bxe6 {[%emt 0:04:44]} 12. Nd4 {[%emt 0:04:16]} Bf7 {[%emt 0:04:28]} 13. Rd1 {[%emt 0:07:51]} Rd8 {[%emt 0:05:19]} 14. Qa4 {[%emt 0:06:34]} Qb6 {[%emt 0:07:12]} 15. b5 {[%emt 0:17:39]} c5 {[%emt 0:08:45]} 16. Nf3 {[%emt 0:01:25]} h6 {[%emt 0:02:43]} 17. Nd5 {[%emt 0:04:20]} Bxd5 {[%emt 0:01:41]} 18. Bc3 {[%emt 0:02:14]} Qc7 {[%emt 0:02:04]} 19. cxd5 {[%emt 0:03:41]} b6 {[%emt 0:00:14]} 20. O-O {[%emt 0:00:31]} Kf7 {[%emt 0:02:31]} 21. Bc4 N8d7 1/2-1/2

[Event "12th Arad Open 2019"]
[Site "Arad"]
[Date "2019.07.30"]
[Round "8.1"]
[White "Gorodetzky, David"]
[Black "David, Alexandru-Vasile"]
[Result "1/2-1/2"]
[ECO "D85"]
[WhiteElo "2461"]
[BlackElo "2428"]
[Annotator "ChessBase"]
[PlyCount "79"]
[EventDate "2019.07.24"]
[EventType "swiss"]
[EventCountry "ROU"]
[SourceTitle "playchess.com"]
[Source "ChessBase"]
[SourceQuality "1"]
[TimeControl "40/5400+30:900+30"]

1. c4 Nf6 {[%emt 0:03:35]} 2. Nc3 {[%emt 0:00:58]} g6 {[%emt 0:00:26]} 3. d4 {[%emt 0:00:23]} d5 {[%emt 0:00:07]} 4. cxd5 {[%emt 0:00:11]} Nxd5 {[%emt 0:00:05]} 5. e4 {[%emt 0:00:07]} Nxc3 {[%emt 0:00:05]} 6. bxc3 {[%emt 0:00:05]} Bg7 {[%emt 0:00:04]} 7. Nf3 {[%emt 0:00:10]} c5 {[%emt 0:00:07]} 8. Rb1 {[%emt 0:00:47]} O-O {[%emt 0:00:05]} 9. Be2 {[%emt 0:00:14]} cxd4 {[%emt 0:00:05]} 10. cxd4 {[%emt 0:00:06]} Qa5+ {[%emt 0:00:05]} 11. Bd2 {[%emt 0:01:45]} Qxa2 {[%emt 0:00:05]} 12. O-O {[%emt 0:00:09]} b6 {[%emt 0:00:04]} 13. Qc1 {[%emt 0:00:09]} Bb7 {[%emt 0:00:08]} 14. Bc4 {[%emt 0:11:17]} Qa4 {[%emt 0:00:06]} 15. Bb5 {[%emt 0:02:10]} Qa2 {[%emt 0:00:05]} 16. Bc4 {[%emt 0:02:25]} Qa4 {[%emt 0:00:06]} 17. Bb5 {[%emt 0:00:06]} Qa2 {[%emt 0:00:04]} 18. Re1 {[%emt 0:00:05]} Rc8 {[%emt 0:05:36]} 19. Qd1 {[%emt 0:00:02]} Nc6 {[%emt 0:12:30]} 20. Re2 {[%emt 0:13:39]} a6 {[%emt 0:14:02]} 21. Ba4 {[%emt 0:02:03]} b5 {[%emt 0:04:34]} 22. Ra1 {[%emt 0:06:55]} Qe6 {[%emt 0:13:31]} 23. d5 {[%emt 0:00:04]} Qd6 {[%emt 0:10:53]} 24. dxc6 {[%emt 0:00:16]} Bxc6 {[%emt 0:00:03]} 25. Bb3 {[%emt 0:04:22]} e6 {[%emt 0:04:02]} 26. h3 {[%emt 0:05:07]} b4 {[%emt 0:01:47]} 27. e5 {[%emt 0:05:05]} Qb8 {[%emt 0:01:52]} 28. Nd4 {[%emt 0:12:43]} Bd7 {[%emt 0:00:05]} 29. f4 {[%emt 0:03:41]} a5 {[%emt 0:01:22]} 30. Ba4 {[%emt 0:03:30]} Bxa4 {[%emt 0:01:03]} 31. Qxa4 {[%emt 0:00:03]} Bf8 {[%emt 0:00:06]} 32. Nb3 {[%emt 0:01:59]} Rc2 {[%emt 0:01:19]} 33. Rf2 {[%emt 0:08:21]} Qb6 {[%emt 0:02:26]} 34. Kf1 {[%emt 0:07:56]} Qa6+ {[%emt 0:02:22]} 35. Kg1 {[%emt 0:01:17]} Qb6 {[%emt 0:00:14]} 36. Re1 {[%emt 0:01:11]} Qc6 {[%emt 0:02:26]} 37. Qxc6 {[%emt 0:02:50]} Rxc6 {[%emt 0:00:02]} 38. Ra1 {[%emt 0:00:01]} a4 {[%emt 0:00:21]} 39. Rf3 {[%emt 0:01:40]} Rca6 40. Nd4 1/2-1/2

[Event "12th Arad Open 2019"]
[Site "Arad"]
[Date "2019.07.30"]
[Round "8.2"]
[White "Jianu, Vlad-Cristian"]
[Black "Mastrovasilis, Dimitrios"]
[Result "1/2-1/2"]
[ECO "D31"]
[WhiteElo "2523"]
[BlackElo "2589"]
[Annotator "RC"]
[PlyCount "36"]
[EventDate "2019.07.24"]
[EventType "swiss"]
[EventCountry "ROU"]
[SourceTitle "playchess.com"]
[Source "ChessBase"]
[SourceQuality "1"]
[TimeControl "40/5400+30:900+30"]

1. d4 {[%emt 0:00:00]} d5 {[%emt 0:00:00]} 2. c4 {[%emt 0:00:00]} e6 {[%emt 0:00:00]} 3. Nc3 {[%emt 0:00:00]} c6 {[%emt 0:00:09]} 4. e4 {[%emt 0:00:00]} dxe4 {[%emt 0:00:19]} 5. Nxe4 {[%emt 0:00:01]} Bb4+ {[%emt 0:00:10]} 6. Bd2 {[%emt 0:00:15]} Qxd4 {[%emt 0:00:12]} 7. Bxb4 {[%emt 0:00:07]} Qxe4+ {[%emt 0:00:10]} 8. Be2 {[%emt 0:00:05]} Na6 {[%emt 0:00:27]} 9. Bd6 {[%emt 0:01:09]} Qxg2 {[%emt 0:01:19]} 10. Qd2 {[%emt 0:00:55]} Nf6 {[%emt 0:00:19]} 11. Bf3 {[%emt 0:00:30]} Qg6 {[%emt 0:00:10]} 12. Ne2 {[%emt 0:00:10]} e5 {[%emt 0:00:21]} 13. Bxe5 {[%emt 0:00:41]} Be6 {[%emt 0:01:29]} 14. O-O-O {[%emt 0:01:03]} Qf5 {[%emt 0:00:28]} 15. Bf4 {[%emt 0:01:02]} Bxc4 {[%emt 0:01:40]} 16. Nd4 {[%emt 0:01:46]} Qc5 {[%emt 0:00:29]} 17. Rhe1+ {[%emt 0:00:32]} Be6+ {[%emt 0:00:12]} 18. Nc2 {[%emt 0:00:12]} O-O {[%emt 0:03:49]} 1/2-1/2

[Event "12th Arad Open 2019"]
[Site "Arad"]
[Date "2019.07.30"]
[Round "8.4"]
[White "Ciorgovean, Iustin"]
[Black "Costachi, Mihnea"]
[Result "1/2-1/2"]
[ECO "D15"]
[WhiteElo "2330"]
[BlackElo "2471"]
[Annotator "ChessBase"]
[PlyCount "27"]
[EventDate "2019.07.24"]
[EventType "swiss"]
[EventCountry "ROU"]
[SourceTitle "playchess.com"]
[Source "ChessBase"]
[SourceQuality "1"]
[TimeControl "40/5400+30:900+30"]

1. d4 {[%emt 0:01:15]} Nf6 {[%emt 0:02:13]} 2. c4 {[%emt 0:00:11]} c6 {[%emt 0:00:04]} 3. Nf3 {[%emt 0:00:26]} d5 {[%emt 0:00:04]} 4. Nc3 {[%emt 0:00:43]} a6 {[%emt 0:00:06]} 5. c5 {[%emt 0:00:07]} g6 {[%emt 0:07:50]} 6. Bf4 {[%emt 0:02:05]} Bg7 {[%emt 0:01:17]} 7. h3 {[%emt 0:00:33]} O-O {[%emt 0:01:02]} 8. e3 {[%emt 0:00:40]} b6 {[%emt 0:22:11]} 9. b4 {[%emt 0:13:59]} Nbd7 {[%emt 0:04:50]} 10. Rc1 {[%emt 0:22:06]} bxc5 {[%emt 0:12:22]} 11. bxc5 {[%emt 0:01:05]} Ne4 {[%emt 0:00:58]} 12. Nxe4 {[%emt 0:08:29]} dxe4 {[%emt 0:00:32]} 13. Nd2 {[%emt 0:03:13]} Qa5 {[%emt 0:03:04]} 14. Be2 {[%emt 0:07:16]} 1/2-1/2

[Event "12th Arad Open 2019"]
[Site "Arad"]
[Date "2019.07.30"]
[Round "8.5"]
[White "Banzea, Alexandru-Bogdan"]
[Black "Schitco, Ivan"]
[Result "0-1"]
[ECO "C78"]
[WhiteElo "2405"]
[BlackElo "2462"]
[Annotator "ChessBase"]
[PlyCount "68"]
[EventDate "2019.07.24"]
[EventType "swiss"]
[EventCountry "ROU"]
[SourceTitle "playchess.com"]
[Source "ChessBase"]
[SourceQuality "1"]
[TimeControl "40/5400+30:900+30"]

1. e4 {[%emt 0:00:00]} e5 {[%emt 0:00:00]} 2. Nf3 {[%emt 0:00:00]} Nc6 {[%emt 0:00:00]} 3. Bb5 {[%emt 0:00:02]} a6 {[%emt 0:00:10]} 4. Ba4 {[%emt 0:00:10]} Nf6 {[%emt 0:00:15]} 5. O-O {[%emt 0:00:22]} Bc5 {[%emt 0:00:28]} 6. c3 {[%emt 0:00:44]} b5 {[%emt 0:00:16]} 7. Bc2 {[%emt 0:00:24]} d5 {[%emt 0:00:24]} 8. exd5 {[%emt 0:20:20]} Qxd5 {[%emt 0:00:18]} 9. d3 {[%emt 0:02:39]} Bf5 {[%emt 0:07:43]} 10. Qe2 {[%emt 0:32:07]} O-O-O {[%emt 0:06:14]} 11. a4 {[%emt 0:04:50]} b4 {[%emt 0:09:06]} 12. d4 {[%emt 0:13:54]} Bxc2 {[%emt 0:02:32]} 13. Qxc2 {[%emt 0:00:41]} exd4 {[%emt 0:06:15]} 14. cxd4 {[%emt 0:00:13]} Nxd4 {[%emt 0:02:49]} 15. Nxd4 {[%emt 0:00:05]} Bxd4 {[%emt 0:00:06]} 16. Bf4 {[%emt 0:00:50]} Rd7 {[%emt 0:02:01]} 17. Nd2 {[%emt 0:02:48]} Nh5 {[%emt 0:14:09]} 18. Bg3 {[%emt 0:02:00]} Nxg3 {[%emt 0:10:42]} 19. hxg3 {[%emt 0:00:06]} h5 {[%emt 0:08:30]} 20. Nf3 {[%emt 0:01:46]} Rhd8 {[%emt 0:08:05]} 21. Rad1 {[%emt 0:10:14]} b3 {[%emt 0:01:35]} 22. Qe2 {[%emt 0:00:52]} Qe6 {[%emt 0:00:50]} 23. Qxe6 {[%emt 0:02:43]} fxe6 {[%emt 0:00:02]} 24. Nxd4 {[%emt 0:02:41]} Rxd4 {[%emt 0:00:01]} 25. Rde1 {[%emt 0:01:12]} Rxa4 {[%emt 0:01:03]} 26. Re3 {[%emt 0:00:20]} Rb4 {[%emt 0:00:38]} 27. Rc1 {[%emt 0:00:35]} Rd2 {[%emt 0:01:22]} 28. Rec3 {[%emt 0:00:18]} Rb7 {[%emt 0:01:27]} 29. Rb1 {[%emt 0:00:24]} Rc2 {[%emt 0:00:38]} 30. Re3 {[%emt 0:00:09]} Rb6 {[%emt 0:00:38]} 31. Kf1 {[%emt 0:00:10]} a5 {[%emt 0:01:45]} 32. Ke1 {[%emt 0:00:10]} a4 {[%emt 0:01:26]} 33. Re4 {[%emt 0:00:18]} Ra6 {[%emt 0:02:02]} 34. Re2 {[%emt 0:00:44]} Rac6 {[%emt 0:01:13]} 0-1

[Event "12th Arad Open 2019"]
[Site "Arad"]
[Date "2019.07.30"]
[Round "8.6"]
[White "Song, Raymond"]
[Black "Soltanici, Ruslan"]
[Result "0-1"]
[ECO "B20"]
[WhiteElo "2456"]
[BlackElo "2408"]
[Annotator "ChessBase"]
[PlyCount "132"]
[EventDate "2019.07.24"]
[EventType "swiss"]
[EventCountry "ROU"]
[SourceTitle "playchess.com"]
[Source "ChessBase"]
[SourceQuality "1"]
[TimeControl "40/5400+30:900+30"]

1. e4 {[%emt 0:00:00]} c5 {[%emt 0:01:18]} 2. Ne2 {[%emt 0:00:00]} d6 {[%emt 0:02:27]} 3. g3 {[%emt 0:00:00]} Nc6 {[%emt 0:01:49]} 4. Bg2 {[%emt 0:00:00]} g6 {[%emt 0:00:41]} 5. c3 {[%emt 0:00:01]} Bg7 {[%emt 0:00:24]} 6. d4 {[%emt 0:00:04]} Bg4 {[%emt 0:01:07]} 7. f3 {[%emt 0:04:31]} Bd7 {[%emt 0:00:15]} 8. Be3 {[%emt 0:02:38]} cxd4 {[%emt 0:02:54]} 9. cxd4 {[%emt 0:00:08]} Nf6 {[%emt 0:00:39]} 10. Nbc3 {[%emt 0:00:08]} O-O {[%emt 0:01:56]} 11. O-O {[%emt 0:00:05]} b5 {[%emt 0:14:51]} 12. a3 {[%emt 0:02:08]} a6 {[%emt 0:07:45]} 13. h3 {[%emt 0:00:53]} e5 {[%emt 0:10:19]} 14. f4 {[%emt 0:00:46]} Rc8 {[%emt 0:03:44]} 15. d5 {[%emt 0:03:18]} Na5 {[%emt 0:01:45]} 16. Bf2 {[%emt 0:04:10]} Re8 {[%emt 0:05:17]} 17. fxe5 {[%emt 0:14:45]} Rxe5 {[%emt 0:05:06]} 18. Bd4 {[%emt 0:01:11]} Re8 {[%emt 0:01:14]} 19. g4 {[%emt 0:01:45]} Nc4 {[%emt 0:02:52]} 20. b3 {[%emt 0:00:31]} Ne5 {[%emt 0:02:17]} 21. Nf4 {[%emt 0:03:17]} h6 {[%emt 0:02:03]} 22. Qd2 {[%emt 0:03:05]} Nh7 {[%emt 0:04:37]} 23. a4 {[%emt 0:02:38]} bxa4 {[%emt 0:02:01]} 24. Nxa4 {[%emt 0:01:00]} Rb8 {[%emt 0:03:20]} 25. Qe3 {[%emt 0:01:07]} Qg5 {[%emt 0:01:32]} 26. Nb6 {[%emt 0:10:46]} Bb5 {[%emt 0:00:35]} 27. Rfd1 {[%emt 0:05:02]} Nxg4 {[%emt 0:01:20]} 28. hxg4 {[%emt 0:01:24]} Bxd4 {[%emt 0:00:07]} 29. Rxd4 {[%emt 0:00:07]} Rxb6 {[%emt 0:00:07]} 30. Rc1 {[%emt 0:06:15]} Nf6 {[%emt 0:01:07]} 31. Bf3 {[%emt 0:01:40]} Rb7 {[%emt 0:01:44]} 32. Ng2 {[%emt 0:03:26]} Qxe3+ {[%emt 0:04:57]} 33. Nxe3 {[%emt 0:00:02]} Rbe7 {[%emt 0:00:10]} 34. Kf2 {[%emt 0:07:58]} Kg7 {[%emt 0:00:40]} 35. Rc6 {[%emt 0:00:57]} Nxe4+ {[%emt 0:02:26]} 36. Bxe4 {[%emt 0:00:07]} Rxe4 {[%emt 0:00:12]} 37. Rxe4 {[%emt 0:00:07]} Rxe4 {[%emt 0:00:02]} 38. Rxd6 {[%emt 0:00:06]} Rf4+ {[%emt 0:00:14]} 39. Kg3 {[%emt 0:00:36]} Rb4 {[%emt 0:00:07]} 40. Rb6 {[%emt 0:00:00]} Rxb3 {[%emt 0:00:00]} 41. Kf2 {[%emt 0:02:47]} Rd3 {[%emt 0:03:55]} 42. Kf3 {[%emt 0:00:46]} Rd4 {[%emt 0:00:11]} 43. Kg3 {[%emt 0:01:14]} Bd3 {[%emt 0:01:15]} 44. Rb7 {[%emt 0:03:39]} Be4 {[%emt 0:03:03]} 45. Ra7 {[%emt 0:02:43]} Bxd5 {[%emt 0:01:19]} 46. Rxa6 {[%emt 0:00:05]} Be6 {[%emt 0:00:16]} 47. Ra5 {[%emt 0:00:10]} Kf6 {[%emt 0:00:39]} 48. Kf3 {[%emt 0:00:14]} g5 {[%emt 0:01:49]} 49. Ra6 {[%emt 0:04:18]} Kg6 {[%emt 0:03:01]} 50. Ra5 {[%emt 0:01:24]} h5 {[%emt 0:00:29]} 51. gxh5+ {[%emt 0:00:03]} Kxh5 {[%emt 0:00:04]} 52. Rb5 {[%emt 0:00:31]} Kg6 {[%emt 0:01:54]} 53. Rb6 {[%emt 0:00:08]} Rf4+ {[%emt 0:00:25]} 54. Kg3 {[%emt 0:00:26]} Re4 {[%emt 0:00:09]} 55. Kf3 {[%emt 0:01:45]} f5 {[%emt 0:00:24]} 56. Ra6 {[%emt 0:00:02]} Kf6 {[%emt 0:01:29]} 57. Rb6 {[%emt 0:00:04]} g4+ {[%emt 0:02:04]} 58. Kf2 {[%emt 0:00:04]} Kg5 {[%emt 0:00:35]} 59. Rb5 {[%emt 0:00:03]} Rf4+ {[%emt 0:01:02]} 60. Kg2 {[%emt 0:00:29]} Rf3 {[%emt 0:00:46]} 61. Nc2 {[%emt 0:00:09]} Rd3 {[%emt 0:01:28]} 62. Ne1 {[%emt 0:00:07]} Rd2+ {[%emt 0:01:06]} 63. Kg3 {[%emt 0:00:05]} Bd5 {[%emt 0:00:40]} 64. Rb4 {[%emt 0:00:21]} Be4 {[%emt 0:00:19]} 65. Rxe4 {[%emt 0:02:10]} fxe4 {[%emt 0:00:08]} 66. Nf3+ gxf3 {[%emt 0:00:11]} 0-1

[Event "12th Arad Open 2019"]
[Site "Arad"]
[Date "2019.07.30"]
[Round "8.7"]
[White "Macovei, Andrei"]
[Black "Visanescu, Daria-Ioana"]
[Result "1-0"]
[ECO "C14"]
[WhiteElo "2424"]
[BlackElo "2079"]
[Annotator "NA"]
[PlyCount "99"]
[EventDate "2019.07.24"]
[EventType "swiss"]
[EventCountry "ROU"]
[SourceTitle "playchess.com"]
[Source "ChessBase"]
[SourceQuality "1"]
[TimeControl "40/5400+30:900+30"]

1. e4 {[%emt 0:00:00]} e6 {[%emt 0:02:40]} 2. d4 {[%emt 0:01:25]} d5 {[%emt 0:00:08]} 3. Nc3 {[%emt 0:00:05]} Nf6 {[%emt 0:00:36]} 4. Bg5 {[%emt 0:02:06]} Be7 {[%emt 0:00:05]} 5. e5 {[%emt 0:00:06]} Nfd7 {[%emt 0:01:17]} 6. Bxe7 {[%emt 0:00:16]} Qxe7 {[%emt 0:00:15]} 7. f4 {[%emt 0:00:07]} a6 {[%emt 0:03:24]} 8. Nf3 {[%emt 0:01:07]} c5 {[%emt 0:00:57]} 9. Qd2 {[%emt 0:01:10]} Nc6 {[%emt 0:01:20]} 10. dxc5 {[%emt 0:08:14]} Nxc5 {[%emt 0:01:59]} 11. Bd3 {[%emt 0:03:03]} O-O {[%emt 0:23:31]} 12. O-O-O {[%emt 0:02:37]} Nb4 {[%emt 0:04:52]} 13. Kb1 {[%emt 0:01:38]} Nbxd3 {[%emt 0:06:57]} 14. cxd3 {[%emt 0:00:10]} Bd7 {[%emt 0:00:20]} 15. Qe3 {[%emt 0:04:51]} Rac8 {[%emt 0:01:43]} 16. Rc1 {[%emt 0:14:33]} b5 {[%emt 0:21:46]} 17. d4 {[%emt 0:00:32]} Na4 {[%emt 0:01:24]} 18. Nxa4 {[%emt 0:01:55]} bxa4 {[%emt 0:00:05]} 19. Rc5 {[%emt 0:00:15]} Rb8 {[%emt 0:03:41]} 20. Qc3 {[%emt 0:08:57]} Rb7 {[%emt 0:03:59]} 21. Rc1 {[%emt 0:01:47]} Rfb8 {[%emt 0:00:35]} 22. Rc2 {[%emt 0:00:29]} h6 {[%emt 0:01:56]} 23. Rc7 {[%emt 0:07:14]} Rxc7 {[%emt 0:04:06]} 24. Qxc7 {[%emt 0:00:20]} Qe8 {[%emt 0:00:12]} 25. Rc3 {[%emt 0:05:24]} Rc8 {[%emt 0:01:12]} 26. Qa5 {[%emt 0:00:03]} Rxc3 {[%emt 0:00:41]} 27. Qxc3 {[%emt 0:00:02]} Qb8 {[%emt 0:00:44]} 28. Ne1 {[%emt 0:01:42]} Bb5 {[%emt 0:01:28]} 29. Nc2 {[%emt 0:00:13]} Bf1 {[%emt 0:02:03]} 30. Ne3 {[%emt 0:00:04]} Qb5 {[%emt 0:00:28]} 31. Kc1 {[%emt 0:00:57]} Bc4 {[%emt 0:01:12]} 32. a3 {[%emt 0:00:07]} Bd3 {[%emt 0:04:26]} 33. Qb4 {[%emt 0:02:48]} Qc6+ {[%emt 0:00:15]} 34. Kd2 {[%emt 0:00:27]} Be4 {[%emt 0:00:09]} 35. g3 {[%emt 0:01:39]} Qd7 {[%emt 0:01:24]} 36. Nd1 {[%emt 0:00:34]} g5 {[%emt 0:03:38]} 37. fxg5 {[%emt 0:01:07]} Qd8 {[%emt 0:01:28]} 38. Qxa4 {[%emt 0:08:41]} Qxg5+ {[%emt 0:00:08]} 39. Ne3 {[%emt 0:00:02]} Qh5 {[%emt 0:01:33]} 40. Qxa6 {[%emt 0:00:00]} Qxh2+ {[%emt 0:00:00]} 41. Qe2 {[%emt 0:00:17]} Qg1 {[%emt 0:01:31]} 42. Qe1 {[%emt 0:00:03]} Qh2+ {[%emt 0:01:10]} 43. Kc3 {[%emt 0:00:04]} Qh5 {[%emt 0:00:46]} 44. b4 {[%emt 0:02:40]} f6 {[%emt 0:00:09]} 45. exf6 {[%emt 0:00:29]} e5 {[%emt 0:01:30]} 46. Qd1 {[%emt 0:02:25]} exd4+ {[%emt 0:02:07]} 47. Kxd4 {[%emt 0:01:11]} Qf7 {[%emt 0:01:35]} 48. Qg4+ {[%emt 0:01:17]} Bg6 {[%emt 0:00:05]} 49. Qc8+ {[%emt 0:00:57]} Kh7 {[%emt 0:00:04]} 50. Nxd5 {[%emt 0:00:16]} 1-0

[Event "12th Arad Open 2019"]
[Site "Arad"]
[Date "2019.07.30"]
[Round "8.8"]
[White "Nastase, Robert-Paul"]
[Black "Svetushkin, Dmitry"]
[Result "0-1"]
[ECO "B13"]
[WhiteElo "2283"]
[BlackElo "2528"]
[Annotator "ChessBase"]
[PlyCount "70"]
[EventDate "2019.07.24"]
[EventType "swiss"]
[EventCountry "ROU"]
[SourceTitle "playchess.com"]
[Source "ChessBase"]
[SourceQuality "1"]
[TimeControl "40/5400+30:900+30"]

1. e4 {[%emt 0:00:00]} c6 {[%emt 0:06:34]} 2. d4 {[%emt 0:00:00]} d5 {[%emt 0:00:07]} 3. exd5 {[%emt 0:00:17]} cxd5 {[%emt 0:00:07]} 4. Bd3 {[%emt 0:00:11]} Nc6 {[%emt 0:00:07]} 5. Ne2 {[%emt 0:00:19]} Nb4 {[%emt 0:01:53]} 6. Bb5+ {[%emt 0:01:05]} Bd7 {[%emt 0:00:05]} 7. Bxd7+ {[%emt 0:00:05]} Qxd7 {[%emt 0:00:04]} 8. c3 {[%emt 0:00:06]} Nc6 {[%emt 0:00:07]} 9. Bf4 {[%emt 0:00:09]} Nf6 {[%emt 0:00:28]} 10. Qd3 {[%emt 0:00:11]} e6 {[%emt 0:00:43]} 11. Nd2 {[%emt 0:00:09]} Be7 {[%emt 0:02:14]} 12. O-O {[%emt 0:01:12]} O-O {[%emt 0:00:06]} 13. a4 {[%emt 0:04:03]} b6 {[%emt 0:00:48]} 14. Qa6 {[%emt 0:01:53]} Ne8 {[%emt 0:04:05]} 15. b4 {[%emt 0:05:14]} Bd6 {[%emt 0:03:33]} 16. Nb3 {[%emt 0:10:17]} Bxf4 {[%emt 0:01:17]} 17. Nxf4 {[%emt 0:00:04]} Nd6 {[%emt 0:00:08]} 18. Nd2 {[%emt 0:15:23]} Rfc8 {[%emt 0:04:56]} 19. Rfb1 {[%emt 0:03:06]} Rc7 {[%emt 0:06:48]} 20. Qd3 {[%emt 0:05:11]} Rac8 {[%emt 0:01:55]} 21. Ne2 {[%emt 0:02:07]} Nd8 {[%emt 0:03:05]} 22. g3 {[%emt 0:04:07]} N8b7 {[%emt 0:00:45]} 23. f3 {[%emt 0:01:18]} Nc4 {[%emt 0:00:36]} 24. Nxc4 {[%emt 0:12:00]} Rxc4 {[%emt 0:00:43]} 25. Kf2 {[%emt 0:00:08]} Nd6 {[%emt 0:01:04]} 26. Ke3 {[%emt 0:04:05]} Nf5+ {[%emt 0:01:05]} 27. Kd2 {[%emt 0:00:34]} f6 {[%emt 0:00:18]} 28. g4 {[%emt 0:05:09]} Ne7 {[%emt 0:03:15]} 29. a5 {[%emt 0:03:06]} e5 {[%emt 0:00:55]} 30. axb6 {[%emt 0:00:35]} axb6 {[%emt 0:00:06]} 31. Ra6 {[%emt 0:01:41]} exd4 {[%emt 0:03:53]} 32. cxd4 {[%emt 0:00:48]} Qd6 {[%emt 0:01:04]} 33. b5 {[%emt 0:01:43]} Ng6 {[%emt 0:00:48]} 34. Qe3 {[%emt 0:03:05]} R4c7 {[%emt 0:02:34]} 35. f4 {[%emt 0:02:52]} Re7 {[%emt 0:01:28]} 0-1

[Event "12th Arad Open 2019"]
[Site "Arad"]
[Date "2019.07.30"]
[Round "8.9"]
[White "Patrascu, Catalin-Lucian"]
[Black "Zawadzka, Jolanta"]
[Result "1/2-1/2"]
[ECO "C55"]
[WhiteElo "2292"]
[BlackElo "2422"]
[Annotator "NA"]
[PlyCount "57"]
[EventDate "2019.07.24"]
[EventType "swiss"]
[EventCountry "ROU"]
[SourceTitle "playchess.com"]
[Source "ChessBase"]
[SourceQuality "1"]
[TimeControl "40/5400+30:900+30"]

1. e4 {[%emt 0:00:00]} e5 {[%emt 0:00:00]} 2. Nf3 {[%emt 0:00:00]} Nc6 {[%emt 0:00:00]} 3. Bc4 {[%emt 0:00:00]} Nf6 {[%emt 0:00:53]} 4. d3 {[%emt 0:00:12]} Be7 {[%emt 0:00:29]} 5. O-O {[%emt 0:03:30]} O-O {[%emt 0:01:29]} 6. a4 {[%emt 0:03:56]} d6 {[%emt 0:02:06]} 7. h3 {[%emt 0:01:41]} Kh8 {[%emt 0:04:00]} 8. Nc3 {[%emt 0:09:14]} Ng8 {[%emt 0:08:22]} 9. a5 {[%emt 0:16:06]} a6 {[%emt 0:00:25]} 10. d4 {[%emt 0:00:53]} exd4 {[%emt 0:25:39]} 11. Nxd4 {[%emt 0:00:09]} Nxd4 {[%emt 0:00:27]} 12. Qxd4 {[%emt 0:00:04]} f5 {[%emt 0:00:14]} 13. Re1 {[%emt 0:14:55]} Bf6 {[%emt 0:03:36]} 14. Qd3 {[%emt 0:05:10]} Ne7 {[%emt 0:07:08]} 15. Bb3 {[%emt 0:15:22]} fxe4 {[%emt 0:05:11]} 16. Nxe4 {[%emt 0:01:00]} Bf5 {[%emt 0:00:24]} 17. Qd1 {[%emt 0:03:56]} Ng6 {[%emt 0:05:47]} 18. Ra4 {[%emt 0:06:56]} Bxe4 {[%emt 0:07:16]} 19. Raxe4 {[%emt 0:00:39]} c6 {[%emt 0:00:45]} 20. Qh5 {[%emt 0:04:21]} d5 {[%emt 0:03:39]} 21. R4e2 {[%emt 0:04:20]} Qxa5 {[%emt 0:04:01]} 22. c3 {[%emt 0:05:26]} Qc7 {[%emt 0:00:15]} 23. Bc2 {[%emt 0:00:25]} Qf7 {[%emt 0:00:24]} 24. Bf5 {[%emt 0:02:46]} Rad8 {[%emt 0:06:17]} 25. Be6 {[%emt 0:00:43]} Qc7 {[%emt 0:01:04]} 26. Bf5 {[%emt 0:00:17]} Kg8 {[%emt 0:04:40]} 27. Be6+ {[%emt 0:00:36]} Kh8 {[%emt 0:00:11]} 28. Bf5 {[%emt 0:00:20]} Kg8 {[%emt 0:00:29]} 29. Be6+ 1/2-1/2